[Event "Live Chess"]
[Site "Chess.com"]
[Date "2023.05.21"]
[Round "-"]
[White "YrrriKharkiv"]
[Black "Conradical12"]
[Result "1-0"]
[WhiteElo "2065"]
[BlackElo "1567"]
[TimeControl "300"]
[EndTime "4:00:46 PDT"]
[Termination "YrrriKharkiv won on time"]

1. e4 {[%clk 0:04:55.5]} 1... e5 {[%clk 0:04:58.1]} 2. Nf3 {[%clk 0:04:54.4]}
2... Nc6 {[%clk 0:04:57.2]} 3. Bc4 {[%clk 0:04:53.3]} 3... Nf6 {[%clk
0:04:56.4]} 4. O-O {[%clk 0:04:51.9]} 4... Bc5 {[%clk 0:04:54.6]} 5. Re1 {[%clk
0:04:45.7]} 5... O-O {[%clk 0:04:52.6]} 6. c3 {[%clk 0:04:44]} 6... d5 {[%clk
0:04:48.8]} 7. exd5 {[%clk 0:04:42.5]} 7... Na5 {[%clk 0:04:45.2]} 8. Bf1 {[%clk
0:04:33.7]} 8... e4 {[%clk 0:04:42.3]} 9. Nd4 {[%clk 0:04:28.5]} 9... Qxd5
{[%clk 0:04:38]} 10. b4 {[%clk 0:04:20.2]} 10... Bxd4 {[%clk 0:04:35.9]} 11.
cxd4 {[%clk 0:04:16.1]} 11... Qxd4 {[%clk 0:04:35.2]} 12. Nc3 {[%clk 0:04:15.5]}
12... Ng4 {[%clk 0:04:23.9]} 13. Qe2 {[%clk 0:04:08.1]} 13... Be6 {[%clk
0:04:03.2]} 14. Nb5 {[%clk 0:03:41.8]} 14... Qxa1 {[%clk 0:03:41.7]} 15. bxa5
{[%clk 0:03:38.9]} 15... Qe5 {[%clk 0:03:33.4]} 16. g3 {[%clk 0:03:37.6]} 16...
c6 {[%clk 0:03:27.7]} 17. Nc3 {[%clk 0:03:35.3]} 17... f5 {[%clk 0:03:24.5]} 18.
h3 {[%clk 0:03:25]} 18... Nf6 {[%clk 0:02:55.6]} 19. f4 {[%clk 0:03:02.3]} 19...
Qxa5 {[%clk 0:02:48.5]} 20. Qe3 {[%clk 0:02:49.5]} 20... Rad8 {[%clk 0:02:32.3]}
21. Bb2 {[%clk 0:02:35.7]} 21... Nd5 {[%clk 0:01:54.7]} 22. Nxd5 {[%clk
0:02:26.7]} 22... Qxd5 {[%clk 0:01:50]} 23. Qc3 {[%clk 0:02:22.5]} 23... Rf7
{[%clk 0:01:38]} 24. Rd1 {[%clk 0:02:10.6]} 24... Qxa2 {[%clk 0:01:12.6]} 25. d4
{[%clk 0:01:45.8]} 25... exd3 {[%clk 0:01:06.8]} 26. Bxd3 {[%clk 0:01:36.1]}
26... Qd5 {[%clk 0:00:53.3]} 27. Be2 {[%clk 0:01:27.3]} 27... Qxd1+ {[%clk
0:00:47.7]} 28. Bxd1 {[%clk 0:01:26.3]} 28... Rxd1+ {[%clk 0:00:46.4]} 29. Kf2
{[%clk 0:01:21.5]} 29... Rfd7 {[%clk 0:00:41]} 30. Bc1 {[%clk 0:01:14.9]} 30...
a5 {[%clk 0:00:29.9]} 31. Be3 {[%clk 0:01:05.1]} 31... a4 {[%clk 0:00:18.7]} 32.
Qe5 {[%clk 0:01:04.6]} 32... Bf7 {[%clk 0:00:16]} 33. Qb8+ {[%clk 0:00:55.2]}
33... Rd8 {[%clk 0:00:15]} 34. Qxb7 {[%clk 0:00:54.6]} 34... a3 {[%clk 0:00:13]}
35. Qa6 {[%clk 0:00:45.3]} 35... a2 {[%clk 0:00:12.6]} 36. g4 {[%clk 0:00:35.1]}
36... a1=Q {[%clk 0:00:12.2]} 37. Qxa1 {[%clk 0:00:33.9]} 37... Rxa1 {[%clk
0:00:11.7]} 38. gxf5 {[%clk 0:00:33.4]} 38... Ra2+ {[%clk 0:00:11.2]} 39. Kf3
{[%clk 0:00:31.4]} 39... Bc4 {[%clk 0:00:10.7]} 40. f6 {[%clk 0:00:30.3]} 40...
Be2+ {[%clk 0:00:09.8]} 41. Ke4 {[%clk 0:00:26]} 41... gxf6 {[%clk 0:00:09.7]}
42. Bc5 {[%clk 0:00:24.2]} 42... Bd3+ {[%clk 0:00:08.3]} 43. Kf3 {[%clk
0:00:23.1]} 43... Re2 {[%clk 0:00:07.1]} 44. Bb6 {[%clk 0:00:19.6]} 44... Kf7
{[%clk 0:00:06.4]} 45. Bxd8 {[%clk 0:00:18.4]} 45... c5 {[%clk 0:00:05.9]} 46.
Bb6 {[%clk 0:00:17.5]} 46... c4 {[%clk 0:00:05.4]} 47. Bd4 {[%clk 0:00:17.2]}
47... Rc2 {[%clk 0:00:03.8]} 48. h4 {[%clk 0:00:16]} 48... c3 {[%clk 0:00:03.7]}
49. h5 {[%clk 0:00:14.3]} 49... Rc1 {[%clk 0:00:03.6]} 50. Bxc3 {[%clk
0:00:13.3]} 50... Rxc3 {[%clk 0:00:01.5]} 51. Ke3 {[%clk 0:00:13]} 51... Rb3
{[%clk 0:00:01.2]} 52. Kd2 {[%clk 0:00:12.1]} 52... Ra3 {[%clk 0:00:01.1]} 53.
Ke3 {[%clk 0:00:11.4]} 53... Ra4 {[%clk 0:00:01]} 54. Kf3 {[%clk 0:00:10.2]}
54... Ra5 {[%clk 0:00:00.9]} 55. Kg3 {[%clk 0:00:09.8]} 55... Ra6 {[%clk
0:00:00.8]} 56. h6 {[%clk 0:00:09.2]} 56... Rd6 {[%clk 0:00:00.7]} 57. Kg4
{[%clk 0:00:08.7]} 57... Rc6 {[%clk 0:00:00.6]} 58. Kf3 {[%clk 0:00:08.1]} 58...
Rc5 {[%clk 0:00:00.5]} 59. Ke3 {[%clk 0:00:07.8]} 59... Rc4 {[%clk 0:00:00.4]}
60. Kf3 {[%clk 0:00:07.5]} 60... Rc5 {[%clk 0:00:00.3]} 61. Kf2 {[%clk
0:00:07.3]} 61... Rc6 {[%clk 0:00:00.1]} 62. Ke3 {[%clk 0:00:07.1]} 1-0

[Event "Live Chess"]
[Site "Chess.com"]
[Date "2023.05.21"]
[Round "-"]
[White "Shepherds_Pie"]
[Black "CheckThis4"]
[Result "0-1"]
[WhiteElo "1946"]
[BlackElo "2502"]
[TimeControl "300"]
[EndTime "4:01:12 PDT"]
[Termination "CheckThis4 won by resignation"]

1. c4 {[%clk 0:04:57.6]} 1... e5 {[%clk 0:04:58.8]} 2. Nc3 {[%clk 0:04:49.8]}
2... Nc6 {[%clk 0:04:57.1]} 3. Nf3 {[%clk 0:04:46.7]} 3... Nf6 {[%clk
0:04:55.3]} 4. e3 {[%clk 0:04:45.2]} 4... g6 {[%clk 0:04:52.5]} 5. d4 {[%clk
0:04:42.5]} 5... exd4 {[%clk 0:04:48.1]} 6. Nxd4 {[%clk 0:04:41.3]} 6... Bg7
{[%clk 0:04:46.9]} 7. Be2 {[%clk 0:04:39.2]} 7... O-O {[%clk 0:04:45.8]} 8. O-O
{[%clk 0:04:37.9]} 8... d6 {[%clk 0:04:45.3]} 9. Nxc6 {[%clk 0:04:36.5]} 9...
bxc6 {[%clk 0:04:44.1]} 10. Bf3 {[%clk 0:04:35.6]} 10... Bd7 {[%clk 0:04:42.6]}
11. Qc2 {[%clk 0:04:32.9]} 11... Rb8 {[%clk 0:04:41.2]} 12. b3 {[%clk
0:04:31.8]} 12... c5 {[%clk 0:04:28]} 13. Bb2 {[%clk 0:04:30.5]} 13... Bg4
{[%clk 0:04:20.4]} 14. Bxg4 {[%clk 0:04:25.6]} 14... Nxg4 {[%clk 0:04:20.3]} 15.
h3 {[%clk 0:04:24.4]} 15... Ne5 {[%clk 0:04:19.4]} 16. Nd5 {[%clk 0:04:20.2]}
16... c6 {[%clk 0:04:16.8]} 17. Nf4 {[%clk 0:04:16.7]} 17... Qg5 {[%clk
0:04:06.2]} 18. Kh1 {[%clk 0:04:04.8]} 18... Rbd8 {[%clk 0:03:57.2]} 19. Rad1
{[%clk 0:04:01.9]} 19... Qh4 {[%clk 0:03:50.4]} 20. Ne2 {[%clk 0:03:55.1]} 20...
Rfe8 {[%clk 0:03:41.3]} 21. f4 {[%clk 0:03:48.5]} 21... Ng4 {[%clk 0:03:39.2]}
22. Bxg7 {[%clk 0:03:34]} 22... Kxg7 {[%clk 0:03:28.1]} 23. Qc3+ {[%clk
0:03:32.8]} 23... Kg8 {[%clk 0:03:15.5]} 24. Rd3 {[%clk 0:03:30.6]} 24... Nf2+
{[%clk 0:03:12]} 25. Kg1 {[%clk 0:03:28.2]} 25... Nxd3 {[%clk 0:03:09.9]} 26.
Qxd3 {[%clk 0:03:27.3]} 26... d5 {[%clk 0:03:07.4]} 27. Rd1 {[%clk 0:03:22.7]}
27... dxc4 {[%clk 0:03:02.5]} 0-1

[Event "Live Chess"]
[Site "Chess.com"]
[Date "2023.05.21"]
[Round "-"]
[White "Woodpusher500"]
[Black "mammamiatwo"]
[Result "0-1"]
[WhiteElo "996"]
[BlackElo "1373"]
[TimeControl "300"]
[EndTime "4:01:14 PDT"]
[Termination "mammamiatwo won on time"]

1. e4 {[%clk 0:04:57.7]} 1... e5 {[%clk 0:04:58.6]} 2. Nc3 {[%clk 0:04:53.1]}
2... c6 {[%clk 0:04:57.7]} 3. Nf3 {[%clk 0:04:40.5]} 3... Qf6 {[%clk 0:04:56.4]}
4. Bc4 {[%clk 0:04:29.7]} 4... h6 {[%clk 0:04:55.4]} 5. d3 {[%clk 0:04:27]} 5...
Bc5 {[%clk 0:04:54.2]} 6. O-O {[%clk 0:04:15.2]} 6... d6 {[%clk 0:04:53.1]} 7.
Qe2 {[%clk 0:04:02.7]} 7... Ne7 {[%clk 0:04:51.8]} 8. Be3 {[%clk 0:04:00]} 8...
Bb6 {[%clk 0:04:45.5]} 9. Bxb6 {[%clk 0:03:52.3]} 9... axb6 {[%clk 0:04:45.4]}
10. Rad1 {[%clk 0:03:43.6]} 10... O-O {[%clk 0:04:44.1]} 11. d4 {[%clk
0:03:34.1]} 11... exd4 {[%clk 0:04:41.9]} 12. Nxd4 {[%clk 0:03:29]} 12... Qg6
{[%clk 0:04:39.5]} 13. g3 {[%clk 0:03:10.7]} 13... Bg4 {[%clk 0:04:32.9]} 14. f3
{[%clk 0:03:06]} 14... Bh3 {[%clk 0:04:31.9]} 15. Rf2 {[%clk 0:02:59.1]} 15...
b5 {[%clk 0:04:25.1]} 16. Bb3 {[%clk 0:02:49.1]} 16... Nd7 {[%clk 0:04:13.6]}
17. a3 {[%clk 0:02:40.3]} 17... Ne5 {[%clk 0:04:09.9]} 18. f4 {[%clk 0:02:25.4]}
18... Bg4 {[%clk 0:04:04.2]} 19. Qe3 {[%clk 0:02:13.7]} 19... Bxd1 {[%clk
0:03:56.7]} 20. fxe5 {[%clk 0:02:09.8]} 20... Bg4 {[%clk 0:03:55]} 21. exd6
{[%clk 0:02:01.4]} 21... Qxd6 {[%clk 0:03:52.9]} 22. Nce2 {[%clk 0:01:37]} 22...
Bxe2 {[%clk 0:03:49.5]} 23. Qxe2 {[%clk 0:01:33.3]} 23... Qxd4 {[%clk
0:03:46.4]} 24. Qf3 {[%clk 0:01:23.5]} 24... Rad8 {[%clk 0:03:34.1]} 25. Bxf7+
{[%clk 0:01:18.4]} 25... Kh8 {[%clk 0:03:32.5]} 26. Qf4 {[%clk 0:00:52.9]} 26...
Qd1+ {[%clk 0:03:25.4]} 27. Kg2 {[%clk 0:00:50]} 27... Qd4 {[%clk 0:03:16.3]}
28. c3 {[%clk 0:00:27]} 28... Qd6 {[%clk 0:03:13.6]} 29. e5 {[%clk 0:00:22.5]}
29... Qc5 {[%clk 0:03:05.7]} 30. Qe4 {[%clk 0:00:13.5]} 30... Nd5 {[%clk
0:02:54.9]} 31. Qg6 {[%clk 0:00:07.1]} 31... Ne3+ {[%clk 0:02:50.5]} 32. Kh3
{[%clk 0:00:03.2]} 32... Qxe5 {[%clk 0:02:44.8]} 0-1

[Event "Live Chess"]
[Site "Chess.com"]
[Date "2023.05.21"]
[Round "-"]
[White "apl_trainer"]
[Black "JoRoSaR"]
[Result "1-0"]
[WhiteElo "1790"]
[BlackElo "1691"]
[TimeControl "300"]
[EndTime "4:01:17 PDT"]
[Termination "apl_trainer won by resignation"]

1. d4 {[%clk 0:04:58.5]} 1... e6 {[%clk 0:04:55.8]} 2. c4 {[%clk 0:04:57.1]}
2... f5 {[%clk 0:04:55]} 3. g3 {[%clk 0:04:55.4]} 3... Nf6 {[%clk 0:04:54.4]} 4.
Bg2 {[%clk 0:04:54.5]} 4... d6 {[%clk 0:04:54]} 5. Nf3 {[%clk 0:04:53.3]} 5...
Be7 {[%clk 0:04:53.2]} 6. O-O {[%clk 0:04:52.6]} 6... O-O {[%clk 0:04:52.7]} 7.
Nc3 {[%clk 0:04:51.8]} 7... Qe8 {[%clk 0:04:52.2]} 8. Re1 {[%clk 0:04:46.8]}
8... Nbd7 {[%clk 0:04:48.7]} 9. e4 {[%clk 0:04:44.9]} 9... fxe4 {[%clk
0:04:46.1]} 10. Nxe4 {[%clk 0:04:43.9]} 10... Nxe4 {[%clk 0:04:44.8]} 11. Rxe4
{[%clk 0:04:43]} 11... Nf6 {[%clk 0:04:44.3]} 12. Re1 {[%clk 0:04:41.5]} 12...
Bd8 {[%clk 0:04:42]} 13. Ng5 {[%clk 0:04:29.2]} 13... h6 {[%clk 0:04:37.6]} 14.
Nxe6 {[%clk 0:04:23.8]} 14... Bxe6 {[%clk 0:04:36.7]} 15. d5 {[%clk 0:04:22.7]}
15... Qg6 {[%clk 0:04:26.4]} 16. dxe6 {[%clk 0:04:20.7]} 16... Re8 {[%clk
0:04:21.1]} 17. Bxb7 {[%clk 0:04:14.8]} 17... Rb8 {[%clk 0:04:19.7]} 18. Bc6
{[%clk 0:04:09.9]} 1-0

[Event "Live Chess"]
[Site "Chess.com"]
[Date "2023.05.21"]
[Round "-"]
[White "gmnorfolk"]
[Black "ZackirtyChess"]
[Result "1-0"]
[WhiteElo "2106"]
[BlackElo "1183"]
[TimeControl "300"]
[EndTime "4:01:36 PDT"]
[Termination "gmnorfolk won by checkmate"]

1. d4 {[%clk 0:04:58]} 1... d5 {[%clk 0:04:58.2]} 2. c4 {[%clk 0:04:55]} 2... e6
{[%clk 0:04:56.3]} 3. Nc3 {[%clk 0:04:51.1]} 3... Bb4 {[%clk 0:04:54.7]} 4. a3
{[%clk 0:04:47.2]} 4... Bxc3+ {[%clk 0:04:52.3]} 5. bxc3 {[%clk 0:04:45.3]} 5...
Nf6 {[%clk 0:04:49.3]} 6. e3 {[%clk 0:04:43.1]} 6... a6 {[%clk 0:04:46.3]} 7.
Bd3 {[%clk 0:04:42.6]} 7... dxc4 {[%clk 0:04:43.8]} 8. Bxc4 {[%clk 0:04:39.7]}
8... b5 {[%clk 0:04:43.3]} 9. Bd3 {[%clk 0:04:38.3]} 9... Bb7 {[%clk 0:04:42.6]}
10. Nf3 {[%clk 0:04:37.3]} 10... Nc6 {[%clk 0:04:42.1]} 11. O-O {[%clk 0:04:36]}
11... O-O {[%clk 0:04:41.7]} 12. e4 {[%clk 0:04:32.3]} 12... h6 {[%clk
0:04:32.7]} 13. Qe2 {[%clk 0:04:29.9]} 13... Re8 {[%clk 0:04:31]} 14. Rd1 {[%clk
0:04:25.8]} 14... e5 {[%clk 0:04:29.8]} 15. d5 {[%clk 0:04:20.8]} 15... Ne7
{[%clk 0:04:25.9]} 16. a4 {[%clk 0:04:14.7]} 16... c6 {[%clk 0:04:22.2]} 17.
dxc6 {[%clk 0:04:08.7]} 17... Nxc6 {[%clk 0:04:19.2]} 18. axb5 {[%clk
0:04:01.8]} 18... axb5 {[%clk 0:04:18.2]} 19. Rxa8 {[%clk 0:04:00.4]} 19... Qxa8
{[%clk 0:04:14.1]} 20. Bxb5 {[%clk 0:03:56.8]} 20... Qa5 {[%clk 0:04:06.6]} 21.
c4 {[%clk 0:03:50.2]} 21... Re6 {[%clk 0:03:56.3]} 22. Bb2 {[%clk 0:03:38.9]}
22... Na7 {[%clk 0:03:54.1]} 23. Nxe5 {[%clk 0:03:25.6]} 23... Nxb5 {[%clk
0:03:50.9]} 24. cxb5 {[%clk 0:03:23.1]} 24... Bxe4 {[%clk 0:03:42.9]} 25. f3
{[%clk 0:03:17.7]} 25... Bh7 {[%clk 0:03:35]} 26. Qc4 {[%clk 0:03:03.4]} 26...
Re7 {[%clk 0:03:05.8]} 27. Qc8+ {[%clk 0:02:54.8]} 27... Re8 {[%clk 0:03:02.3]}
28. Qb7 {[%clk 0:02:48.4]} 28... Qa4 {[%clk 0:02:56.4]} 29. Qxf7+ {[%clk
0:02:41.1]} 29... Kh8 {[%clk 0:02:55.3]} 30. Rd7 {[%clk 0:02:27.7]} 30... Nxd7
{[%clk 0:02:42.6]} 31. Ng6+ {[%clk 0:02:24.2]} 31... Bxg6 {[%clk 0:02:39]} 32.
Qxg7# {[%clk 0:02:23.3]} 1-0

[Event "Live Chess"]
[Site "Chess.com"]
[Date "2023.05.21"]
[Round "-"]
[White "diana21strabt"]
[Black "raminguy"]
[Result "1-0"]
[WhiteElo "1759"]
[BlackElo "1964"]
[TimeControl "300"]
[EndTime "4:02:07 PDT"]
[Termination "diana21strabt won by resignation"]

1. e4 {[%clk 0:04:58.3]} 1... e5 {[%clk 0:04:58.8]} 2. Nf3 {[%clk 0:04:57.3]}
2... Nc6 {[%clk 0:04:58.4]} 3. d4 {[%clk 0:04:56.4]} 3... exd4 {[%clk
0:04:57.2]} 4. Bc4 {[%clk 0:04:54.3]} 4... Nf6 {[%clk 0:04:56.5]} 5. O-O {[%clk
0:04:52.4]} 5... Bc5 {[%clk 0:04:54.2]} 6. e5 {[%clk 0:04:50.2]} 6... d5 {[%clk
0:04:53.3]} 7. exf6 {[%clk 0:04:48.7]} 7... dxc4 {[%clk 0:04:52.3]} 8. fxg7
{[%clk 0:04:47.8]} 8... Rg8 {[%clk 0:04:51.9]} 9. Re1+ {[%clk 0:04:46.8]} 9...
Be6 {[%clk 0:04:48.9]} 10. Ng5 {[%clk 0:04:46]} 10... Qf6 {[%clk 0:04:42.1]} 11.
Nxe6 {[%clk 0:04:36.8]} 11... fxe6 {[%clk 0:04:40.3]} 12. Qh5+ {[%clk
0:04:34.3]} 12... Kd7 {[%clk 0:04:31.4]} 13. Qxc5 {[%clk 0:04:32.6]} 13... Qxg7
{[%clk 0:04:30.4]} 14. g3 {[%clk 0:04:28.8]} 14... Raf8 {[%clk 0:04:26.4]} 15.
Qxc4 {[%clk 0:04:26.9]} 15... Qf6 {[%clk 0:04:22.6]} 16. Bf4 {[%clk 0:04:13.3]}
16... e5 {[%clk 0:04:21.4]} 17. Qd5+ {[%clk 0:04:12.2]} 17... Kc8 {[%clk
0:04:19.8]} 18. Nd2 {[%clk 0:03:51.2]} 18... exf4 {[%clk 0:04:17.8]} 19. Ne4
{[%clk 0:03:50.1]} 19... Qf7 {[%clk 0:04:13.6]} 20. Qxf7 {[%clk 0:03:42.4]}
20... Rxf7 {[%clk 0:04:13.5]} 21. Rad1 {[%clk 0:03:39.8]} 21... fxg3 {[%clk
0:04:12.3]} 22. fxg3 {[%clk 0:03:38.6]} 22... h5 {[%clk 0:04:10.9]} 23. Rf1
{[%clk 0:03:34]} 23... Re7 {[%clk 0:04:08.8]} 24. Nf6 {[%clk 0:03:31.4]} 24...
Rh8 {[%clk 0:04:02.2]} 25. Nd5 {[%clk 0:03:28.8]} 25... Rg7 {[%clk 0:03:59.6]}
26. Rde1 {[%clk 0:03:24.8]} 26... h4 {[%clk 0:03:58.3]} 27. Rf3 {[%clk
0:03:16.5]} 27... hxg3 {[%clk 0:03:56.4]} 28. Rxg3 {[%clk 0:03:14.4]} 28... Rhg8
{[%clk 0:03:55.4]} 29. Kg2 {[%clk 0:03:01.4]} 29... Rxg3+ {[%clk 0:03:52.3]} 30.
hxg3 {[%clk 0:03:00.2]} 30... Rg5 {[%clk 0:03:52]} 31. Ne7+ {[%clk 0:02:55.8]}
31... Nxe7 {[%clk 0:03:51.2]} 32. Rxe7 {[%clk 0:02:54.8]} 32... Rc5 {[%clk
0:03:51]} 33. Re2 {[%clk 0:02:51]} 33... Rg5 {[%clk 0:03:49.3]} 34. Kf3 {[%clk
0:02:49.8]} 34... Kd7 {[%clk 0:03:48]} 35. g4 {[%clk 0:02:48.7]} 35... Kd6
{[%clk 0:03:45.2]} 36. Kf4 {[%clk 0:02:47.8]} 36... Rg8 {[%clk 0:03:43.7]} 37.
g5 {[%clk 0:02:46.6]} 37... Rf8+ {[%clk 0:03:43]} 38. Kg4 {[%clk 0:02:45.5]}
38... Kd5 {[%clk 0:03:42]} 39. g6 {[%clk 0:02:43.7]} 39... c5 {[%clk 0:03:41.6]}
40. Kg5 {[%clk 0:02:41.8]} 40... Rf1 {[%clk 0:03:38.2]} 41. Rg2 {[%clk
0:02:36.7]} 1-0

[Event "Live Chess"]
[Site "Chess.com"]
[Date "2023.05.21"]
[Round "-"]
[White "Biranidun"]
[Black "GwaryTek"]
[Result "1-0"]
[WhiteElo "2546"]
[BlackElo "2067"]
[TimeControl "300"]
[EndTime "4:02:24 PDT"]
[Termination "Biranidun won on time"]

1. e4 {[%clk 0:04:58.8]} 1... Nf6 {[%clk 0:04:55.7]} 2. e5 {[%clk 0:04:57.8]}
2... Nd5 {[%clk 0:04:53.9]} 3. d4 {[%clk 0:04:57.7]} 3... d6 {[%clk 0:04:48.6]}
4. Nf3 {[%clk 0:04:57.1]} 4... g6 {[%clk 0:04:41.1]} 5. Bc4 {[%clk 0:04:55.6]}
5... c6 {[%clk 0:04:37.5]} 6. O-O {[%clk 0:04:51.5]} 6... Bg7 {[%clk 0:04:35.6]}
7. exd6 {[%clk 0:04:50]} 7... exd6 {[%clk 0:04:33.8]} 8. Re1+ {[%clk 0:04:49]}
8... Be6 {[%clk 0:04:13.1]} 9. Ng5 {[%clk 0:04:47.9]} 9... O-O {[%clk
0:04:03.4]} 10. Nxe6 {[%clk 0:04:46.7]} 10... fxe6 {[%clk 0:04:03.3]} 11. Rxe6
{[%clk 0:04:45.8]} 11... Qh4 {[%clk 0:03:52.4]} 12. g3 {[%clk 0:04:41]} 12...
Qh3 {[%clk 0:03:48.5]} 13. Re2 {[%clk 0:04:20]} 13... Nd7 {[%clk 0:03:32]} 14.
Nc3 {[%clk 0:04:12.8]} 14... Nf6 {[%clk 0:03:30.3]} 15. Qf1 {[%clk 0:04:01]}
15... Qh5 {[%clk 0:03:10.9]} 16. Qg2 {[%clk 0:03:50.2]} 16... Kh8 {[%clk
0:02:17.6]} 17. Nxd5 {[%clk 0:03:33.6]} 17... cxd5 {[%clk 0:02:17.5]} 18. Bd3
{[%clk 0:03:32.8]} 18... Rae8 {[%clk 0:02:13.7]} 19. Rxe8 {[%clk 0:03:26.9]}
19... Rxe8 {[%clk 0:02:13.6]} 20. Bf4 {[%clk 0:03:20.1]} 20... Ne4 {[%clk
0:02:01.5]} 21. c3 {[%clk 0:03:18.8]} 21... g5 {[%clk 0:01:41.7]} 22. Be3 {[%clk
0:03:17.9]} 22... g4 {[%clk 0:01:25.6]} 23. Re1 {[%clk 0:03:15.9]} 23... Ng5
{[%clk 0:01:22.8]} 24. Re2 {[%clk 0:03:05.6]} 24... Nf3+ {[%clk 0:01:06.4]} 25.
Kh1 {[%clk 0:03:04.8]} 25... a6 {[%clk 0:00:36.3]} 26. Bf4 {[%clk 0:03:03.2]}
26... Ne1 {[%clk 0:00:19.4]} 27. Rxe8+ {[%clk 0:02:45.5]} 27... Qxe8 {[%clk
0:00:19.3]} 28. Qf1 {[%clk 0:02:45.1]} 28... Nxd3 {[%clk 0:00:15.1]} 29. Qxd3
{[%clk 0:02:45]} 29... Qe1+ {[%clk 0:00:13.5]} 30. Kg2 {[%clk 0:02:44.4]} 30...
Qe6 {[%clk 0:00:05.8]} 31. Qe3 {[%clk 0:02:43]} 31... Qf7 {[%clk 0:00:03.3]} 32.
Bxd6 {[%clk 0:02:40.8]} 32... h6 {[%clk 0:00:01.2]} 33. Be5 {[%clk 0:02:40.2]}
1-0

[Event "Live Chess"]
[Site "Chess.com"]
[Date "2023.05.21"]
[Round "-"]
[White "MarkLim1"]
[Black "lateforthesky"]
[Result "0-1"]
[WhiteElo "1684"]
[BlackElo "2125"]
[TimeControl "300"]
[EndTime "4:02:29 PDT"]
[Termination "lateforthesky won by checkmate"]

1. d4 {[%clk 0:04:59.5]} 1... Nf6 {[%clk 0:04:57.6]} 2. Nf3 {[%clk 0:04:58.7]}
2... g6 {[%clk 0:04:56.4]} 3. c4 {[%clk 0:04:57.6]} 3... Bg7 {[%clk 0:04:55.7]}
4. Nc3 {[%clk 0:04:56.8]} 4... d6 {[%clk 0:04:55.2]} 5. e4 {[%clk 0:04:56.2]}
5... O-O {[%clk 0:04:54.3]} 6. Be2 {[%clk 0:04:55.8]} 6... Na6 {[%clk 0:04:39]}
7. O-O {[%clk 0:04:54.4]} 7... e5 {[%clk 0:04:36.8]} 8. d5 {[%clk 0:04:53.5]}
8... Nc5 {[%clk 0:04:35.7]} 9. Qc2 {[%clk 0:04:52.8]} 9... a5 {[%clk 0:04:34.8]}
10. Bg5 {[%clk 0:04:51.7]} 10... h6 {[%clk 0:04:33.1]} 11. Be3 {[%clk
0:04:49.7]} 11... c6 {[%clk 0:03:49.9]} 12. Bxc5 {[%clk 0:04:16.6]} 12... dxc5
{[%clk 0:03:47.9]} 13. Nxe5 {[%clk 0:04:15.1]} 13... Re8 {[%clk 0:03:40.8]} 14.
Nf3 {[%clk 0:04:10]} 14... cxd5 {[%clk 0:03:32.9]} 15. cxd5 {[%clk 0:04:05.6]}
15... Ng4 {[%clk 0:03:24]} 16. Bb5 {[%clk 0:03:54]} 16... Bd7 {[%clk 0:03:20.8]}
17. Bxd7 {[%clk 0:03:51.8]} 17... Qxd7 {[%clk 0:03:20.3]} 18. Rfe1 {[%clk
0:03:50.1]} 18... b5 {[%clk 0:03:16.5]} 19. a4 {[%clk 0:03:48.2]} 19... b4
{[%clk 0:02:52]} 20. Nb5 {[%clk 0:03:45.4]} 20... Rac8 {[%clk 0:02:46.5]} 21.
Rad1 {[%clk 0:03:38]} 21... c4 {[%clk 0:02:44.3]} 22. h3 {[%clk 0:03:32.4]}
22... Ne5 {[%clk 0:02:37.7]} 23. Nxe5 {[%clk 0:03:18]} 23... Bxe5 {[%clk
0:02:37.6]} 24. Qe2 {[%clk 0:03:09.2]} 24... f5 {[%clk 0:02:28.5]} 25. f3 {[%clk
0:03:07.5]} 25... fxe4 {[%clk 0:02:23.3]} 26. fxe4 {[%clk 0:03:06.5]} 26... Rf8
{[%clk 0:02:02.8]} 27. Rc1 {[%clk 0:03:04.8]} 27... c3 {[%clk 0:01:40.9]} 28.
bxc3 {[%clk 0:03:02.8]} 28... bxc3 {[%clk 0:01:39.3]} 29. Qe3 {[%clk 0:02:56.5]}
29... Kg7 {[%clk 0:01:31.2]} 30. Qd3 {[%clk 0:02:49.2]} 30... Qe7 {[%clk
0:01:16.3]} 31. Rc2 {[%clk 0:02:13.2]} 31... Qh4 {[%clk 0:01:07.1]} 32. Re3
{[%clk 0:02:08.7]} 32... Qf4 {[%clk 0:00:59.7]} 33. Re1 {[%clk 0:01:58.9]} 33...
Qh2# {[%clk 0:00:57.4]} 0-1

[Event "Live Chess"]
[Site "Chess.com"]
[Date "2023.05.21"]
[Round "-"]
[White "risinghelios"]
[Black "McSlash1"]
[Result "1-0"]
[WhiteElo "1901"]
[BlackElo "2008"]
[TimeControl "300"]
[EndTime "4:02:30 PDT"]
[Termination "risinghelios won by resignation"]

1. e4 {[%clk 0:04:58.7]} 1... c5 {[%clk 0:04:59.4]} 2. c3 {[%clk 0:04:57.5]}
2... d5 {[%clk 0:04:57.6]} 3. exd5 {[%clk 0:04:56.7]} 3... Qxd5 {[%clk
0:04:57.5]} 4. d4 {[%clk 0:04:56.4]} 4... cxd4 {[%clk 0:04:57]} 5. cxd4 {[%clk
0:04:56.3]} 5... Nf6 {[%clk 0:04:56.3]} 6. Nf3 {[%clk 0:04:55.5]} 6... Bf5
{[%clk 0:04:55.2]} 7. Nc3 {[%clk 0:04:55]} 7... Qd8 {[%clk 0:04:54.3]} 8. Bb5+
{[%clk 0:04:54.5]} 8... Nbd7 {[%clk 0:04:52.8]} 9. O-O {[%clk 0:04:53.7]} 9...
e6 {[%clk 0:04:52.1]} 10. Ne5 {[%clk 0:04:53.2]} 10... Be7 {[%clk 0:04:50.9]}
11. Bg5 {[%clk 0:04:51.9]} 11... O-O {[%clk 0:04:49.7]} 12. Bxf6 {[%clk
0:04:49.2]} 12... Nxf6 {[%clk 0:04:49.6]} 13. g4 {[%clk 0:04:37.3]} 13... Bg6
{[%clk 0:04:46.6]} 14. f4 {[%clk 0:04:36.7]} 14... Nd5 {[%clk 0:04:41.2]} 15.
Nxd5 {[%clk 0:04:35.2]} 15... Qxd5 {[%clk 0:04:41.1]} 16. Be2 {[%clk 0:04:32.1]}
16... Rfd8 {[%clk 0:04:34.1]} 17. Nxg6 {[%clk 0:04:29.7]} 17... hxg6 {[%clk
0:04:32.8]} 18. Qb3 {[%clk 0:04:27.9]} 18... Qxd4+ {[%clk 0:04:30.8]} 19. Kg2
{[%clk 0:04:26.8]} 19... b6 {[%clk 0:04:17.9]} 20. Rad1 {[%clk 0:04:23.5]} 20...
Qe4+ {[%clk 0:04:17.2]} 21. Bf3 {[%clk 0:04:21.6]} 21... Qxf4 {[%clk 0:04:03.2]}
22. Bxa8 {[%clk 0:04:20]} 22... Qxg4+ {[%clk 0:04:01.5]} 23. Kh1 {[%clk
0:04:16]} 23... Rxa8 {[%clk 0:03:55]} 24. Qf3 {[%clk 0:04:10.2]} 24... Qxf3+
{[%clk 0:03:48.5]} 25. Rxf3 {[%clk 0:04:10.1]} 25... Bf6 {[%clk 0:03:47.6]} 26.
Rd7 {[%clk 0:04:05.3]} 26... a5 {[%clk 0:03:44]} 27. Rb3 {[%clk 0:04:02.8]}
27... Rb8 {[%clk 0:03:42.4]} 28. Rbd3 {[%clk 0:03:47.2]} 28... b5 {[%clk
0:03:40.9]} 29. b3 {[%clk 0:03:44.5]} 29... a4 {[%clk 0:03:39.2]} 30. b4 {[%clk
0:03:41.5]} 30... Rc8 {[%clk 0:03:33.9]} 31. Rb7 {[%clk 0:03:34.2]} 31... Rc2
{[%clk 0:03:29]} 32. Rb8+ {[%clk 0:03:27.3]} 1-0